bitfinex-derivatives/quotes_BTCF0:USTF0_20260221
["timestamp","ask_amount","ask_price","bid_price","bid_amount"]
[1771653062539,0.014741,67864.0,67857.0,0.029484]
[1771653062746,0.014741,67863.0,67857.0,0.014742]
[1771653064245,0.014741,67864.0,67857.0,0.029484]
[1771653064446,0.01474,67869.0,67858.0,0.014742]
[1771653064639,0.014741,67865.0,67858.0,0.014742]
[1771653066045,0.014741,67865.0,67859.0,0.00096]
[1771653066247,0.014741,67865.0,67858.0,0.014742]
[1771653072072,0.014741,67865.0,67859.0,0.0008]
[1771653072364,0.014741,67865.0,67858.0,0.014742]
[1771653077271,0.029482,67865.0,67858.0,0.014742]
[1771653079271,0.014741,67865.0,67858.0,0.014742]
[1771653080570,0.029482,67865.0,67858.0,0.014742]
[1771653080770,0.014741,67864.0,67858.0,0.014742]
[1771653081068,0.014741,67864.0,67858.0,0.015622]
[1771653081270,0.014741,67864.0,67858.0,0.014742]
[1771653081669,0.014741,67864.0,67857.0,0.014742]
[1771653082564,0.014741,67864.0,67857.0,0.029484]
[1771653083668,0.014741,67864.0,67858.0,0.014742]
[1771653084073,0.014741,67864.0,67858.0,0.015702]
[1771653084372,0.014741,67864.0,67858.0,0.014742]
[1771653086278,0.014741,67864.0,67857.0,0.014742]
[1771653086974,0.014741,67865.0,67855.0,0.014743]
[1771653086975,0.014741,67863.0,67856.0,0.014742]
[1771653087175,0.014741,67862.0,67856.0,0.014742]
[1771653088278,0.014741,67863.0,67856.0,0.014742]
[1771653090072,0.014741,67863.0,67855.0,0.014743]
[1771653090073,0.014741,67863.0,67857.0,0.014742]
[1771653097686,0.014741,67862.0,67856.0,0.014742]
[1771653098682,0.014741,67863.0,67856.0,0.014742]
[1771653099084,0.014741,67863.0,67857.0,0.014742]
[1771653099385,0.014741,67864.0,67857.0,0.014742]
[1771653100889,0.014741,67864.0,67857.0,0.029484]
[1771653108094,0.014741,67864.0,67858.0,0.015622]
[1771653108282,0.014741,67864.0,67858.0,0.014742]
[1771653124606,0.014741,67865.0,67858.0,0.014742]
[1771653124903,0.01474,67867.0,67860.0,0.014741]
[1771653125103,0.014738,67878.0,67871.0,0.014739]
[1771653125401,0.014738,67877.0,67870.0,0.014739]
[1771653125606,0.014737,67882.0,67867.0,0.01474]
[1771653125607,0.014737,67880.0,67872.0,0.014739]
[1771653125805,0.014738,67878.0,67872.0,0.014739]
[1771653126008,0.014738,67879.0,67872.0,0.014739]
[1771653126205,0.014738,67879.0,67870.0,0.014739]
[1771653126206,0.014737,67882.0,67876.0,0.014738]
[1771653126398,0.014735,67890.0,67874.0,0.014738]
[1771653126399,0.014734,67894.0,67874.0,0.23656905]
[1771653126605,0.014735,67891.0,67885.0,0.014736]
[1771653128409,0.014734,67893.0,67887.0,0.014736]
[1771653128410,0.029469,67893.0,67887.0,0.014736]
[1771653128608,0.014735,67892.0,67886.0,0.014736]
[1771653128809,0.029469,67893.0,67887.0,0.014736]
[1771653129004,0.014734,67895.0,67888.0,0.014736]
[1771653129309,0.014734,67896.0,67889.0,0.014735]
[1771653130509,0.28971193,67902.0,67888.0,0.014735]
[1771653130510,0.014735,67892.0,67888.0,0.014735]
[1771653130705,0.014735,67892.0,67886.0,0.014736]
[1771653130915,0.014735,67891.0,67885.0,0.014736]
[1771653131204,0.014735,67890.0,67884.0,0.014736]
[1771653131608,0.014735,67890.0,67884.0,0.029472]
[1771653132007,0.014735,67890.0,67885.0,0.014736]
[1771653132614,0.014735,67893.0,67879.0,0.014737]
[1771653132912,0.014735,67893.0,67888.0,0.014735]
[1771653133403,0.014735,67892.0,67887.0,0.014736]
[1771653136305,0.014735,67892.0,67886.0,0.014736]
[1771653137309,0.014735,67891.0,67886.0,0.014736]
[1771653139116,0.014736,67888.0,67883.0,0.029474]
[1771653139413,0.014736,67888.0,67883.0,0.014737]
[1771653139912,0.014735,67889.0,67884.0,0.014736]
[1771653141114,0.014735,67889.0,67883.0,0.014737]
[1771653142605,0.029471,67889.0,67883.0,0.014737]
[1771653143603,0.014736,67888.0,67883.0,0.014737]
[1771653145411,0.014736,67888.0,67882.0,0.014737]
[1771653146317,0.014735,67889.0,67882.0,0.014737]
[1771653147320,0.014735,67889.0,67883.0,0.014737]
[1771653149414,0.014735,67891.0,67883.0,0.014737]
[1771653150318,0.014735,67891.0,67885.0,0.014736]
[1771653151020,0.014735,67891.0,67885.0,0.029472]
[1771653152018,0.014735,67891.0,67886.0,0.014736]
[1771653154622,0.02947,67891.0,67886.0,0.014736]
[1771653159522,0.014735,67890.0,67886.0,0.014736]
[1771653161321,0.014735,67890.0,67884.0,0.014736]
[1771653162326,0.014735,67889.0,67884.0,0.014736]
[1771653163926,0.014735,67889.0,67883.0,0.014737]
[1771653165131,0.014735,67889.0,67883.0,0.015617]
[1771653165326,0.014735,67889.0,67883.0,0.014737]
[1771653169333,0.014735,67890.0,67884.0,0.014736]
[1771653171625,0.014735,67890.0,67885.0,0.014736]
[1771653171927,0.014735,67891.0,67885.0,0.014736]
[1771653172129,0.014735,67891.0,67885.0,0.029472]
[1771653172629,0.014735,67891.0,67886.0,0.014736]
[1771653172827,0.014734,67893.0,67888.0,0.014735]
[1771653175534,0.014734,67896.0,67892.0,0.014735]
[1771653175721,0.21368986,67895.0,67892.0,0.014735]
[1771653175925,0.21368986,67894.0,67890.0,0.014735]
[1771653176125,0.014734,67895.0,67890.0,0.014735]
[1771653176326,0.21368979,67894.0,67890.0,0.014735]
[1771653176529,0.014734,67895.0,67890.0,0.014735]
[1771653176731,0.21368922,67894.0,67890.0,0.014735]
[1771653176930,0.014734,67895.0,67890.0,0.014735]
[1771653177126,0.21368887,67894.0,67890.0,0.014735]
[1771653177327,0.014734,67893.0,67888.0,0.014735]
[1771653177936,0.014734,67893.0,67888.0,0.02947]
[1771653178236,0.014734,67893.0,67888.0,0.014735]
[1771653179335,0.029468,67895.0,67889.0,0.014735]
[1771653179637,0.014734,67893.0,67888.0,0.014735]
[1771653180141,0.014734,67894.0,67889.0,0.014735]
[1771653180441,0.736264,67938.0,67884.0,0.014736]
[1771653180442,0.014731,67903.0,67898.0,0.014732]
[1771653180624,0.014731,67903.0,67887.0,0.014734]
[1771653180625,0.014731,67902.0,67896.0,0.014732]
[1771653181030,0.014731,67904.0,67896.0,0.014732]
[1771653181226,0.014731,67903.0,67897.0,0.014732]
[1771653181434,0.014731,67902.0,67897.0,0.014732]
[1771653181633,0.25134078,67911.0,67896.0,0.014732]
[1771653181634,0.25134078,67919.0,67907.0,0.01473]
[1771653181937,0.029458,67912.0,67906.0,0.01473]
[1771653182139,0.014729,67911.0,67905.0,0.01473]
[1771653182336,0.014729,67911.0,67906.0,0.01473]
[1771653183240,0.01473,67909.0,67903.0,0.014731]
[1771653184534,0.01473,67908.0,67903.0,0.014731]
[1771653185942,0.014728,67915.0,67900.0,0.014731]
[1771653185943,0.014729,67914.0,67904.0,0.01473]
[1771653186239,0.014729,67910.0,67904.0,0.02946]
[1771653186838,0.014729,67910.0,67905.0,0.01473]
[1771653187245,0.014729,67914.0,67900.0,0.014731]
[1771653187246,0.014731,67905.0,67900.0,0.014731]
[1771653187445,0.014731,67905.0,67899.0,0.014732]
[1771653187945,0.014731,67905.0,67898.0,0.014732]
[1771653188339,0.029462,67905.0,67898.0,0.014732]
[1771653189047,0.014731,67905.0,67899.0,0.00084]
[1771653189242,0.014731,67905.0,67898.0,0.014732]
[1771653189445,0.014731,67905.0,67898.0,0.029464]
[1771653190449,0.014731,67905.0,67899.0,0.014732]
[1771653191046,0.014731,67904.0,67898.0,0.014732]
[1771653191249,0.01473,67906.0,67899.0,0.014732]
[1771653192047,0.01473,67906.0,67900.0,0.00092]
[1771653192250,0.01473,67906.0,67899.0,0.014732]
[1771653194254,0.01473,67906.0,67900.0,0.014731]
[1771653196258,0.01473,67906.0,67899.0,0.014732]
[1771653196649,0.01473,67906.0,67900.0,0.014731]
[1771653198962,0.01473,67907.0,67900.0,0.014731]
[1771653200360,0.01473,67907.0,67901.0,0.014731]
[1771653201056,0.01473,67907.0,67901.0,0.015691]
[1771653201264,0.01473,67907.0,67901.0,0.014731]
[1771653205164,0.01473,67907.0,67901.0,0.029462]
[1771653205559,0.01473,67907.0,67902.0,0.014731]
[1771653206160,0.01473,67908.0,67902.0,0.014731]
[1771653207370,0.01473,67908.0,67903.0,0.014731]
[1771653208060,0.01473,67908.0,67903.0,0.029462]
[1771653208260,0.01473,67908.0,67903.0,0.014731]
[1771653208457,0.01473,67908.0,67903.0,0.029462]
[1771653209766,0.01473,67908.0,67903.0,0.009122]
[1771653210666,0.01473,67908.0,67904.0,0.014731]
[1771653211370,0.01473,67907.0,67903.0,0.26399951]
[1771653212264,0.01473,67907.0,67903.0,0.26223951]
[1771653213361,0.01473,67906.0,67903.0,0.26223951]
[1771653213560,0.01473,67906.0,67901.0,0.014731]
[1771653213760,0.01473,67906.0,67901.0,0.014181]
[1771653213966,0.01473,67906.0,67901.0,0.012731]
[1771653214377,0.01473,67906.0,67901.0,0.008911]
[1771653214671,0.01473,67906.0,67901.0,0.008151]
[1771653220272,0.01473,67905.0,67901.0,0.008151]
[1771653221268,0.01473,67905.0,67899.0,0.60657721]
[1771653221572,0.029461,67905.0,67899.0,0.59184521]
[1771653221771,0.01473,67909.0,67897.0,0.014732]
[1771653221772,0.014731,67904.0,67898.0,0.014732]
[1771653221972,0.014731,67904.0,67899.0,0.014732]
[1771653222274,0.01473,67907.0,67902.0,0.014731]
[1771653223272,0.01473,67908.0,67902.0,0.029462]
[1771653223477,0.01473,67907.0,67902.0,0.014731]
[1771653226377,0.01473,67909.0,67903.0,0.014731]
[1771653229177,0.01473,67909.0,67904.0,0.014731]
[1771653231479,0.014729,67913.0,67904.0,0.014731]
[1771653231680,0.014729,67912.0,67906.0,0.01473]
[1771653232177,0.014728,67915.0,67906.0,0.01473]
[1771653232379,0.014729,67911.0,67907.0,0.01473]
[1771653232687,0.014729,67911.0,67906.0,0.01473]
[1771653232880,0.014729,67911.0,67904.0,0.01473]
[1771653232881,0.014729,67912.0,67907.0,0.01473]
[1771653233074,0.014729,67911.0,67906.0,0.01473]
[1771653233971,0.014729,67912.0,67906.0,0.01473]
[1771653234171,0.014729,67910.0,67906.0,0.01473]
[1771653234378,0.014729,67911.0,67904.0,0.01473]
[1771653234577,0.014729,67910.0,67905.0,0.01473]
[1771653235583,0.014729,67910.0,67906.0,0.01473]
[1771653237284,0.01473,67909.0,67904.0,0.01473]
[1771653238884,0.014729,67910.0,67905.0,0.01473]
[1771653239384,0.029458,67912.0,67906.0,0.01473]
[1771653239678,0.014729,67911.0,67906.0,0.01473]
[1771653240280,0.014729,67912.0,67906.0,0.01473]
[1771653240484,0.014729,67912.0,67907.0,0.01473]
[1771653240890,0.014728,67917.0,67909.0,0.014729]
[1771653241178,0.014729,67913.0,67908.0,0.01473]
[1771653242183,0.029458,67913.0,67908.0,0.01473]
[1771653242584,0.014729,67912.0,67908.0,0.01473]
[1771653243275,0.014729,67911.0,67905.0,0.01473]
[1771653243475,0.014729,67911.0,67906.0,0.01473]
[1771653244387,0.014729,67912.0,67908.0,0.01473]
[1771653244586,0.014729,67913.0,67908.0,0.01473]
[1771653245088,0.014729,67912.0,67908.0,0.01473]
[1771653245884,0.014729,67912.0,67906.0,0.02946]
[1771653246287,0.014729,67912.0,67906.0,0.01473]
[1771653246288,0.014729,67911.0,67906.0,0.01473]
[1771653246887,0.01473,67908.0,67903.0,0.26500144]
[1771653247090,0.01473,67908.0,67902.0,0.27973244]
[1771653248290,0.01473,67908.0,67904.0,0.014731]
[1771653249388,0.01473,67909.0,67904.0,0.029461]
[1771653249691,0.01473,67909.0,67904.0,0.01473]
[1771653250188,0.01473,67909.0,67904.0,0.02946]
[1771653250391,0.01473,67909.0,67904.0,0.01473]
[1771653252786,0.01473,67909.0,67902.0,0.014731]
[1771653252985,0.01473,67908.0,67903.0,0.014731]
[1771653253186,0.01473,67908.0,67902.0,0.014731]
[1771653253383,0.01473,67908.0,67903.0,0.014731]
[1771653257394,0.014729,67910.0,67904.0,0.014731]
[1771653259688,0.014729,67910.0,67905.0,0.01473]
[1771653260995,0.014729,67910.0,67906.0,0.01473]
[1771653265198,0.014729,67910.0,67898.0,0.27419139]
[1771653266199,0.014729,67910.0,67901.0,0.014731]
[1771653266398,0.01473,67909.0,67903.0,0.029462]
[1771653267304,0.01473,67909.0,67903.0,0.014731]
[1771653268304,0.01473,67908.0,67903.0,0.014731]
[1771653270108,0.01473,67907.0,67901.0,0.014731]
[1771653270403,0.01473,67908.0,67902.0,0.014731]
[1771653271503,0.01473,67908.0,67903.0,0.014731]
[1771653272709,0.014729,67910.0,67903.0,0.014731]
[1771653274301,0.014729,67910.0,67904.0,0.01473]
[1771653274515,0.01473,67909.0,67903.0,0.014731]
[1771653274712,0.01473,67909.0,67904.0,0.014731]
[1771653275016,0.014729,67910.0,67904.0,0.014731]
[1771653276414,0.029458,67910.0,67904.0,0.014731]
[1771653277013,0.014729,67910.0,67904.0,0.014731]
[1771653278513,0.014729,67910.0,67905.0,0.01473]
[1771653280418,0.01473,67909.0,67905.0,0.01473]
[1771653282118,0.029458,67911.0,67906.0,0.01473]
[1771653282418,0.014729,67911.0,67906.0,0.01473]
[1771653283415,0.01473,67909.0,67904.0,0.01473]
[1771653283616,0.01473,67909.0,67904.0,0.02946]
[1771653284617,0.01473,67909.0,67904.0,0.01473]
[1771653289225,0.01473,67909.0,67904.0,0.02946]
[1771653291022,0.01473,67909.0,67904.0,0.01473]
[1771653291526,0.01473,67909.0,67904.0,0.02946]
[1771653292927,0.01473,67909.0,67905.0,0.01473]
[1771653297231,0.01473,67909.0,67904.0,0.014731]
[1771653298541,0.01473,67907.0,67902.0,0.014731]
[1771653300437,0.014729,67912.0,67899.0,0.33130815]
[1771653300639,0.014731,67904.0,67898.0,0.34604015]
[1771653300828,0.014731,67904.0,67899.0,0.014732]
[1771653301232,0.014731,67904.0,67898.0,0.29387215]
[1771653301632,0.014731,67904.0,67898.0,0.014732]
[1771653302541,0.01473,67908.0,67895.0,0.014733]
[1771653302942,0.01473,67908.0,67902.0,0.029462]
[1771653303645,0.01473,67908.0,67903.0,0.014731]
[1771653304033,0.01473,67909.0,67904.0,0.014731]
[1771653304233,0.01473,67909.0,67903.0,0.014731]
[1771653306244,0.014729,67910.0,67903.0,0.014731]
[1771653307340,0.014729,67910.0,67904.0,0.01473]
[1771653307948,0.014729,67910.0,67905.0,0.01473]
[1771653308646,0.029458,67910.0,67905.0,0.01473]
[1771653309248,0.014729,67910.0,67905.0,0.01473]
[1771653309446,0.029458,67910.0,67905.0,0.01473]
[1771653309741,0.01473,67909.0,67905.0,0.01473]
[1771653312336,0.01473,67909.0,67904.0,0.014731]
[1771653312543,0.01473,67909.0,67903.0,0.014731]
[1771653312746,0.014731,67905.0,67899.0,0.014731]
[1771653312941,0.014731,67905.0,67898.0,0.014732]
[1771653313142,0.014731,67904.0,67898.0,0.014732]
[1771653313449,0.029462,67904.0,67898.0,0.014732]
[1771653313748,0.014731,67904.0,67899.0,0.014732]
[1771653314449,0.014731,67903.0,67898.0,0.014732]
[1771653314749,0.014731,67904.0,67898.0,0.014732]
[1771653315050,0.014731,67904.0,67898.0,0.015532]
[1771653315347,0.014731,67904.0,67898.0,0.014732]
[1771653316250,0.029462,67904.0,67898.0,0.014732]
[1771653316451,0.014731,67904.0,67898.0,0.014732]
[1771653316641,0.014731,67904.0,67897.0,0.014732]
[1771653316642,0.014731,67904.0,67899.0,0.014732]
[1771653316948,0.014731,67904.0,67898.0,0.014732]
[1771653317152,0.014731,67903.0,67896.0,0.014732]
[1771653317354,0.014731,67902.0,67896.0,0.014732]
[1771653317651,0.014731,67903.0,67897.0,0.014732]
[1771653317851,0.014731,67902.0,67896.0,0.014732]
[1771653318051,0.24036266,67900.0,67886.0,0.33999919]
[1771653318256,0.014733,67895.0,67884.0,0.47156]
[1771653318446,0.014734,67890.0,67884.0,0.486295]
[1771653318641,0.014734,67889.0,67884.0,0.486295]
[1771653318947,0.014734,67889.0,67880.0,0.57076965]
[1771653318948,0.014733,67895.0,67880.0,0.39019739]
[1771653319147,0.014735,67886.0,67880.0,0.014736]
[1771653319753,0.014734,67887.0,67880.0,0.014736]
[1771653320052,0.014734,67887.0,67876.0,0.014737]
[1771653320246,0.014734,67887.0,67881.0,0.014736]
[1771653321151,0.014735,67886.0,67880.0,0.014736]
[1771653324758,0.014735,67885.0,67880.0,0.014736]
[1771653325055,0.014735,67885.0,67878.0,0.014736]
[1771653325056,0.014735,67885.0,67879.0,0.014736]
[1771653325354,0.014735,67884.0,67879.0,0.014736]
[1771653325649,0.014735,67884.0,67872.0,0.25034485]
[1771653325650,0.014736,67879.0,67872.0,0.014738]
[1771653325848,0.029472,67879.0,67870.0,0.014738]
[1771653326154,0.014736,67879.0,67872.0,0.014737]
[1771653326452,0.014736,67878.0,67872.0,0.014737]
[1771653326653,0.014736,67878.0,67873.0,0.014737]
[1771653326842,0.014736,67878.0,67872.0,0.014737]
[1771653327851,0.014736,67878.0,67868.0,0.014738]
[1771653328151,0.014736,67878.0,67872.0,0.014737]
[1771653329160,0.014736,67878.0,67872.0,0.029474]
[1771653329553,0.014736,67879.0,67873.0,0.014737]
[1771653330252,0.014736,67879.0,67872.0,0.014737]
[1771653330253,0.014736,67879.0,67874.0,0.014737]
[1771653330553,0.014736,67881.0,67870.0,0.014738]
[1771653330755,0.014736,67880.0,67874.0,0.014737]
[1771653333055,0.029472,67880.0,67874.0,0.014737]
[1771653333262,0.014736,67879.0,67874.0,0.014737]
[1771653334461,0.014736,67879.0,67873.0,0.014737]
[1771653336059,0.014736,67879.0,67873.0,0.015537]
[1771653336262,0.014736,67879.0,67873.0,0.014737]
[1771653339365,0.014736,67879.0,67874.0,0.014737]
[1771653351482,0.014735,67886.0,67880.0,0.014736]
[1771653351778,0.02947,67885.0,67879.0,0.014736]
[1771653351969,0.014735,67885.0,67879.0,0.014736]
[1771653352170,0.02947,67885.0,67879.0,0.014736]
[1771653352670,0.014735,67884.0,67879.0,0.014736]
[1771653353068,0.014735,67884.0,67879.0,0.010986]
[1771653353970,0.02947,67886.0,67880.0,0.014736]
[1771653354167,0.014735,67884.0,67879.0,0.014736]
[1771653355271,0.014735,67886.0,67881.0,0.014736]
[1771653355569,0.014735,67885.0,67879.0,0.014092]
[1771653356279,0.014735,67885.0,67877.0,0.014736]
[1771653356579,0.014735,67884.0,67879.0,0.014736]
[1771653356981,0.014735,67884.0,67870.0,0.014738]
[1771653357191,0.014735,67884.0,67870.0,0.07266374]
[1771653358085,0.014735,67884.0,67870.0,0.07366374]
[1771653358468,0.014735,67884.0,67878.0,0.014736]
[1771653360377,0.014735,67883.0,67878.0,0.014736]
[1771653361282,0.014735,67886.0,67878.0,0.014736]
[1771653361687,0.014735,67885.0,67879.0,0.014736]
[1771653361984,0.014735,67886.0,67880.0,0.014736]
[1771653363187,0.02947,67886.0,67880.0,0.014736]
[1771653363585,0.02947,67886.0,67879.0,0.014736]
[1771653363586,0.02947,67886.0,67877.0,0.014736]
[1771653363789,0.02947,67886.0,67875.0,0.014737]
[1771653363790,0.014735,67885.0,67879.0,0.014736]
[1771653371997,0.014735,67884.0,67874.0,0.014737]
[1771653372199,0.014736,67882.0,67873.0,0.014737]
[1771653373198,0.014736,67882.0,67876.0,0.014737]
[1771653376901,0.014735,67883.0,67877.0,0.014736]
[1771653377799,0.014735,67883.0,67877.0,0.029472]
[1771653380503,0.014735,67885.0,67877.0,0.029472]
[1771653380902,0.014735,67884.0,67878.0,0.014736]
[1771653381103,0.014735,67885.0,67878.0,0.014736]
[1771653381509,0.014735,67884.0,67878.0,0.014736]
[1771653390518,0.014735,67883.0,67878.0,0.014736]
[1771653399630,0.014735,67883.0,67877.0,0.014736]
[1771653404232,0.014735,67885.0,67877.0,0.014736]
[1771653405241,0.014735,67884.0,67877.0,0.014736]
[1771653405532,0.014735,67883.0,67877.0,0.014736]
[1771653412543,0.014735,67884.0,67877.0,0.014736]
[1771653413246,0.014734,67887.0,67877.0,0.014736]
[1771653413843,0.014735,67883.0,67877.0,0.029472]
[1771653414442,0.014735,67883.0,67877.0,0.014736]
[1771653415243,0.014735,67885.0,67877.0,0.014736]
[1771653415943,0.014735,67883.0,67877.0,0.014736]
[1771653416145,0.014735,67885.0,67877.0,0.014736]
[1771653416336,0.014735,67883.0,67877.0,0.014736]
[1771653419945,0.014735,67883.0,67878.0,0.014736]
[1771653419946,0.013853,67883.0,67878.0,0.014736]
[1771653420343,0.014735,67884.0,67878.0,0.014736]
[1771653420749,0.014735,67883.0,67878.0,0.014736]
[1771653420942,0.014735,67885.0,67878.0,0.014736]
[1771653421547,0.014735,67883.0,67878.0,0.014736]
[1771653437170,0.014735,67883.0,67876.0,0.014737]
[1771653437358,0.014736,67881.0,67873.0,0.014737]
[1771653437559,0.014736,67881.0,67870.0,0.19544509]
[1771653437758,0.014735,67882.0,67874.0,0.014737]
[1771653438454,0.014736,67881.0,67874.0,0.029474]
[1771653438659,0.014736,67881.0,67874.0,0.014737]
[1771653441372,0.014736,67881.0,67874.0,0.029474]
[1771653442567,0.014736,67881.0,67875.0,0.014737]
[1771653442774,0.014735,67883.0,67877.0,0.014736]
[1771653447089,0.014735,67883.0,67877.0,0.015536]
[1771653447374,0.014735,67883.0,67877.0,0.014736]
[1771653453989,0.014735,67883.0,67872.0,0.014737]
[1771653454284,0.014735,67883.0,67867.0,0.014738]
[1771653454285,0.014736,67881.0,67870.0,0.18070709]
[1771653454586,0.014736,67881.0,67875.0,0.014737]
[1771653464787,0.014736,67881.0,67875.0,0.029474]
[1771653465183,0.014735,67885.0,67875.0,0.014737]
[1771653465387,0.014735,67882.0,67876.0,0.014737]
[1771653483301,0.014735,67884.0,67878.0,0.014736]
[1771653483604,0.014734,67887.0,67880.0,0.014736]
[1771653483804,0.014735,67886.0,67880.0,0.014736]
[1771653484301,0.014735,67885.0,67880.0,0.014736]
[1771653486302,0.014734,67887.0,67881.0,0.014735]
[1771653486710,0.014734,67887.0,67880.0,0.014736]
[1771653487008,0.029468,67887.0,67881.0,0.014735]
[1771653490311,0.014735,67886.0,67881.0,0.014735]
[1771653490914,0.014735,67886.0,67882.0,0.014735]
[1771653492314,0.014734,67888.0,67882.0,0.014735]
[1771653492510,0.014735,67886.0,67882.0,0.014735]
[1771653492714,0.014735,67886.0,67880.0,0.014736]
[1771653492715,0.014734,67891.0,67885.0,0.014735]
[1771653492927,0.014733,67895.0,67886.0,0.014734]
[1771653492928,0.014733,67893.0,67886.0,0.014734]
[1771653493103,0.014734,67891.0,67886.0,0.014734]
[1771653493419,0.014733,67894.0,67886.0,0.014734]
[1771653493714,0.014733,67891.0,67886.0,0.014734]
[1771653493910,0.014734,67891.0,67886.0,0.014734]
[1771653494117,0.014733,67894.0,67886.0,0.014734]
[1771653494310,0.014733,67892.0,67887.0,0.014734]
[1771653494506,0.014733,67893.0,67888.0,0.014734]
[1771653494710,0.014732,67896.0,67887.0,0.014734]
[1771653494907,0.014733,67892.0,67887.0,0.014734]
[1771653495107,0.00835701,67892.0,67887.0,0.014734]
[1771653495309,0.00835701,67892.0,67888.0,0.014734]
[1771653495515,0.014733,67893.0,67888.0,0.014734]
[1771653495817,0.014733,67892.0,67887.0,0.014734]
[1771653496316,0.014733,67891.0,67886.0,0.014734]
[1771653497617,0.029467,67891.0,67886.0,0.014734]
[1771653498117,0.014733,67891.0,67886.0,0.014734]
[1771653499121,0.029467,67891.0,67885.0,0.014735]
[1771653499818,0.014734,67890.0,67885.0,0.014735]
[1771653500321,0.014733,67891.0,67885.0,0.014735]
[1771653500515,0.014733,67895.0,67886.0,0.014734]
[1771653500720,0.014733,67891.0,67886.0,0.014734]
[1771653501218,0.014733,67891.0,67885.0,0.014735]
[1771653501519,0.029467,67891.0,67885.0,0.014735]
[1771653503023,0.014734,67890.0,67885.0,0.014735]
[1771653503924,0.014734,67890.0,67884.0,0.014735]
[1771653508523,0.014734,67890.0,67885.0,0.014735]
[1771653510624,0.014733,67891.0,67885.0,0.014735]
[1771653513030,0.014734,67890.0,67884.0,0.014735]
[1771653513328,0.014734,67889.0,67880.0,0.014736]
[1771653514126,0.014734,67889.0,67883.0,0.014735]
[1771653514721,0.014734,67889.0,67884.0,0.014735]
[1771653515227,0.014733,67891.0,67884.0,0.014735]
[1771653515429,0.014734,67890.0,67884.0,0.014735]
[1771653518229,0.014734,67890.0,67883.0,0.014735]
[1771653518230,0.014733,67894.0,67887.0,0.014734]
[1771653518423,0.014733,67893.0,67887.0,0.014734]
[1771653518823,0.014733,67893.0,67888.0,0.014734]
[1771653523239,0.014733,67893.0,67886.0,0.014734]
[1771653523240,0.014733,67892.0,67886.0,0.029468]
[1771653523535,0.014733,67892.0,67887.0,0.014734]
[1771653526237,0.014734,67891.0,67886.0,0.014734]
[1771653529237,0.014733,67892.0,67886.0,0.014734]
[1771653529238,0.014734,67890.0,67886.0,0.014734]
[1771653534241,0.014734,67890.0,67885.0,0.014735]
[1771653535645,0.014734,67888.0,67883.0,0.014735]
[1771653537243,0.014734,67887.0,67882.0,0.014735]
[1771653538241,0.014734,67889.0,67882.0,0.014735]
[1771653540140,0.014734,67888.0,67882.0,0.014735]
[1771653541244,0.029468,67890.0,67883.0,0.014735]
[1771653541945,0.014734,67890.0,67884.0,0.014735]
[1771653545745,0.39411739,67894.0,67879.0,0.34614998]
[1771653545948,0.014735,67886.0,67881.0,0.014736]
[1771653546140,0.014735,67886.0,67879.0,0.014736]
[1771653546337,0.014735,67886.0,67880.0,0.014736]
[1771653547048,0.014735,67886.0,67879.0,0.014736]
[1771653547348,0.014735,67886.0,67879.0,0.029472]
[1771653547549,0.014735,67886.0,67880.0,0.014736]
[1771653548849,0.014735,67885.0,67880.0,0.014736]
[1771653549348,0.014735,67885.0,67878.0,0.014736]
[1771653549842,0.014735,67884.0,67878.0,0.014736]
[1771653550043,0.014735,67884.0,67876.0,0.014737]
[1771653550945,0.014735,67884.0,67878.0,0.014736]
[1771653551251,0.014735,67886.0,67879.0,0.014736]
[1771653552247,0.014735,67885.0,67879.0,0.014736]
[1771653553145,0.014734,67887.0,67878.0,0.014736]
[1771653553350,0.014735,67886.0,67880.0,0.014736]
[1771653553952,0.014735,67885.0,67879.0,0.014736]
[1771653554951,0.014735,67885.0,67878.0,0.014736]
[1771653554952,0.014735,67886.0,67880.0,0.014736]
[1771653557754,0.014735,67886.0,67880.0,0.029472]
[1771653558353,0.014735,67886.0,67880.0,0.014736]
[1771653561253,0.014735,67885.0,67878.0,0.029472]
[1771653562553,0.014735,67885.0,67878.0,0.014736]
[1771653562754,0.014735,67885.0,67878.0,0.029472]
[1771653564357,0.014735,67885.0,67878.0,0.014736]
[1771653564556,0.014735,67885.0,67879.0,0.014736]
[1771653570061,0.014735,67885.0,67879.0,0.015616]
[1771653570356,0.014735,67885.0,67879.0,0.014736]
[1771653573051,0.014735,67885.0,67879.0,0.015656]
[1771653573251,0.014735,67885.0,67879.0,0.014736]
[1771653576055,0.014735,67885.0,67879.0,0.015656]
[1771653576255,0.014735,67885.0,67879.0,0.014736]
[1771653576861,0.014735,67886.0,67879.0,0.014736]
[1771653580058,0.5764933,67914.0,67877.0,0.25311221]
[1771653580059,0.19601498,67908.0,67880.0,0.46660675]
[1771653580267,0.2025909,67907.0,67893.0,0.014733]
[1771653580562,0.014732,67900.0,67893.0,0.014733]
[1771653580957,0.014732,67899.0,67893.0,0.014733]
[1771653581357,0.014732,67898.0,67892.0,0.014733]
[1771653581553,0.014731,67901.0,67890.0,0.014734]
[1771653581756,0.014732,67899.0,67891.0,0.014733]
[1771653581952,0.014732,67899.0,67893.0,0.014733]
[1771653582956,0.014732,67896.0,67891.0,0.014733]
[1771653584665,0.014732,67897.0,67892.0,0.014733]
[1771653590361,0.014732,67896.0,67891.0,0.014733]
[1771653594963,0.014733,67895.0,67891.0,0.014733]